bitfinex-derivatives/quotes_BNBF0:USTF0_20250330
["timestamp","ask_amount","ask_price","bid_price","bid_amount"]
[1743303974890,0.32677602,612.04,610.92,1.0]
[1743303975194,0.61138971,612.04,611.02,0.28461369]
[1743303975394,0.61138971,612.04,610.84,0.32741798]
[1743303975695,0.61138971,612.04,610.92,1.0]
[1743303976593,0.61138971,612.04,610.93,0.28461019]
[1743303976988,0.61138971,612.04,610.94,1.0]
[1743303977395,2.455,612.03,610.94,1.0]
[1743303977595,0.3267867,612.02,610.94,1.0]
[1743303980995,0.28461601,612.01,610.94,1.0]
[1743303981196,0.32679738,612.0,610.94,1.0]
[1743303988806,0.32679738,612.0,611.12,1.0]
[1743303994207,1.33,611.99,611.12,1.0]
[1743303996606,1.44,611.98,611.12,1.0]
[1743304021824,0.32679738,612.0,611.12,1.0]
[1743304023027,2.129,611.99,611.12,1.0]
[1743304023221,2.129,611.99,611.11,0.28454969]
[1743304024024,1.148194,611.98,611.11,0.28454969]
[1743304024330,2.556194,611.98,611.11,0.28454969]
[1743304024531,0.3268134,611.97,611.11,0.28454969]
[1743304024829,1.4750074,611.97,611.11,0.28454969]
[1743304025330,1.148194,611.96,611.11,0.28454969]
[1743304025729,0.32682408,611.95,610.84,0.32741798]
[1743304025931,0.32682408,611.95,610.91,1.0]
[1743304026130,1.148194,611.94,611.11,0.2846358]
[1743304026329,1.148194,611.94,610.84,0.32741798]
[1743304026530,1.148194,611.94,610.91,1.0]
[1743304026931,1.148194,611.93,610.91,1.0]
[1743304027131,1.148194,611.93,610.92,0.28462998]
[1743304027526,0.32682408,611.95,610.92,0.28462998]
[1743304031734,0.32682408,611.95,610.84,0.32741798]
[1743304031937,0.32682408,611.95,610.91,1.0]
[1743304032138,0.32682408,611.95,610.92,0.28462183]
[1743304032331,0.32682408,611.95,610.84,0.32741798]
[1743304032528,0.32682408,611.95,610.91,1.0]
[1743304033134,0.32682408,611.95,610.92,0.28461601]
[1743304034738,0.32682408,611.95,610.94,1.0]
[1743304039238,0.32682408,611.95,611.1,1.0]
[1743304045848,2.23882408,611.95,611.1,1.0]
[1743304050050,1.912,611.95,611.1,1.0]
[1743304054251,1.912,611.95,611.26,1.0]
[1743304060362,3.164,611.95,611.26,1.0]
[1743304062762,3.164,611.95,611.22,0.28448804]
[1743304062763,3.164,611.95,611.4,1.0]
[1743304084471,3.164,611.95,611.53,1.0]
[1743304103184,3.164,611.95,611.51,0.2844241]
[1743304103786,3.164,611.95,611.12,2.52489028]
[1743304103983,3.164,611.95,611.51,0.28450432]
[1743304104386,3.164,611.95,611.36,2.52489028]
[1743304104586,3.164,611.95,611.51,0.28447642]
[1743304104986,3.164,611.95,611.36,2.52489028]
[1743304105184,3.164,611.95,611.39,1.0]
[1743304105387,3.164,611.95,611.51,0.28447642]
[1743304105686,3.164,611.95,610.89,2.52489028]
[1743304105887,3.164,611.95,611.51,0.28447293]
[1743304106388,3.164,611.95,610.89,2.52489028]
[1743304106583,3.164,611.95,611.51,0.28453108]
[1743304106988,3.164,611.95,610.91,0.32738046]
[1743304107188,3.164,611.95,611.51,0.28447293]
[1743304107585,3.164,611.95,610.91,0.32738046]
[1743304107790,3.164,611.95,611.39,1.0]
[1743304108492,3.164,611.95,611.4,0.2844706]
[1743304109587,3.164,611.95,611.44,1.0]
[1743304118103,3.164,611.95,611.63,1.0]
[1743304157438,3.164,611.95,611.62,0.28438459]
[1743304163848,3.164,611.95,611.45,0.32709134]
[1743304164042,3.164,611.95,611.62,0.28444038]
[1743304164449,3.164,611.95,611.45,0.32709134]
[1743304164749,3.164,611.95,611.45,1.32709134]
[1743304165548,3.164,611.95,611.46,0.28444038]
[1743304166755,3.164,611.95,611.45,0.32709134]
[1743304167152,3.164,611.95,611.46,0.28444038]
[1743304172758,3.164,611.95,611.45,0.32709134]
[1743304174260,3.164,611.95,611.46,0.28450084]
[1743304174853,3.164,611.95,611.5,1.0]
[1743304178562,3.164,611.95,611.58,2.52489028]
[1743304179959,3.164,611.95,611.59,2.52489028]
[1743304180760,3.164,611.95,611.6,2.52489028]
[1743304182461,3.164,611.95,611.52,0.28439737]
[1743304182665,3.164,611.95,611.58,1.0]
[1743304266830,3.164,611.95,611.57,0.28437878]
[1743304274842,3.164,611.95,611.11,2.52489028]
[1743304275036,3.164,611.95,611.28,1.0]
[1743304275241,3.164,611.95,611.52,0.28451479]
[1743304275442,3.164,611.95,611.11,2.52489028]
[1743304275643,3.164,611.95,611.28,1.0]
[1743304277045,3.164,611.95,611.29,0.28449502]
[1743304277945,3.164,611.95,611.28,1.0]
[1743304278349,3.164,611.95,611.29,0.28448223]
[1743304283847,3.164,611.95,610.45,2.52489028]
[1743304284049,3.164,611.95,611.28,1.0]
[1743304304566,3.164,611.95,611.18,0.28451828]
[1743304307862,3.164,611.95,610.79,2.52489028]
[1743304308063,3.164,611.95,611.13,1.0]
[1743304308262,3.164,611.95,611.18,0.28458459]
[1743304313872,3.164,611.95,610.8,0.32743942]
[1743304314069,3.164,611.95,611.18,0.28458343]
[1743304314467,3.164,611.95,610.8,0.32743942]
[1743304314670,3.164,611.95,611.13,1.0]
[1743304315271,3.164,611.95,611.14,0.28454503]
[1743304315867,3.164,611.95,611.16,1.0]
[1743304320877,3.164,611.95,611.3,1.0]
[1743304323575,3.164,611.95,611.44,1.0]
[1743304326080,3.164,611.95,611.47,2.52489028]
[1743304327684,3.164,611.95,611.44,1.0]
[1743304342802,3.164,611.95,611.45,0.32709134]
[1743304342998,3.164,611.95,611.6,1.0]
[1743304363613,3.164,611.95,611.8,1.0]
[1743304364011,1.84385073,612.96,611.8,1.0]
[1743304364211,0.32629088,612.95,611.8,1.0]
[1743304367613,2.09829088,612.95,611.8,1.0]
[1743304367808,3.70729088,612.95,611.8,1.0]
[1743304368217,0.28420459,612.94,611.8,1.0]
[1743304368510,0.32630153,612.93,611.8,1.0]
[1743304371218,0.28420576,612.92,611.8,1.0]
[1743304371519,0.32631218,612.91,611.8,1.0]
[1743304376521,0.28420692,612.9,611.8,1.0]
[1743304376720,0.32632283,612.89,611.8,1.0]
[1743304379324,0.28420692,612.88,611.8,1.0]
[1743304379520,0.32633348,612.87,611.8,1.0]
[1743304380323,0.6105404,612.87,611.8,1.0]
[1743304382026,1.1442038,612.86,611.8,1.0]
[1743304382227,0.32634412,612.85,611.8,1.0]
[1743304382527,1.1442038,612.84,611.8,1.0]
[1743304382727,0.32635478,612.83,611.8,1.0]
[1743304385430,1.1442038,612.82,611.8,1.0]
[1743304385628,0.32636543,612.81,611.8,1.0]
[1743304386323,1.1442038,612.8,611.8,1.0]
[1743304386529,0.32637608,612.79,611.8,1.0]
[1743304386926,1.1442038,612.78,611.8,1.0]
[1743304387128,0.32638673,612.77,611.8,1.0]
[1743304390930,1.14,612.76,611.79,0.28423825]
[1743304391129,0.32639738,612.75,611.79,0.28423825]
[1743304391528,1.47060118,612.75,611.79,0.28423825]
[1743304392429,1.1442038,612.74,611.79,0.28423825]
[1743304392626,0.32640804,612.73,611.79,0.28423825]
[1743304393135,1.1442038,612.72,611.79,0.28423825]
[1743304393329,0.32641869,612.71,611.79,0.28423825]
[1743304393928,1.1442038,612.7,611.79,0.28423825]
[1743304394126,0.32642935,612.69,611.79,0.28423825]
[1743304394928,1.1442038,612.68,611.45,0.32709134]
[1743304395134,0.32644,612.67,611.65,1.0]
[1743304397130,1.404,612.66,611.65,1.0]
[1743304409952,1.484,612.65,611.65,1.0]
[1743304410749,1.484,612.65,611.8,1.0]
[1743304414050,1.831,612.64,611.8,1.0]
[1743304436166,0.32644,612.67,611.8,1.0]
[1743304437968,1.238,612.66,611.8,1.0]
[1743304439970,1.37,612.65,611.8,1.0]
[1743304460197,1.222,612.64,611.8,1.0]
[1743304460596,1.222,612.64,611.86,2.52489028]
[1743304462599,1.222,612.64,611.82,0.28419183]
[1743304463997,1.222,612.64,611.85,2.52489028]
[1743304466695,1.289,612.63,611.85,2.52489028]
[1743304468096,1.289,612.63,611.83,0.28419415]
[1743304470000,1.289,612.63,611.67,2.52489028]
[1743304470198,1.289,612.63,611.8,1.0]
[1743304470408,1.289,612.63,611.83,0.284222]
[1743304473010,1.289,612.63,611.68,0.32696834]
[1743304473209,1.289,612.63,611.8,1.0]
[1743304473511,1.289,612.63,611.83,0.28422084]
[1743304473713,1.289,612.63,611.68,0.32696834]
[1743304474012,1.289,612.63,611.8,1.0]
[1743304490019,1.611,612.62,611.8,1.0]
[1743304492422,1.611,612.62,612.16,1.0]
[1743304493121,1.444,612.61,612.16,1.0]
[1743304498423,1.444,612.61,612.17,0.32670663]
[1743304513335,1.611,612.62,612.17,0.32670663]
[1743304515735,1.41200138,613.59,612.17,0.32670663]
[1743304516032,1.14903738,613.62,612.17,0.32670663]
[1743304516033,1.0,613.37,612.17,0.32670663]
[1743304516236,0.32607277,613.36,612.17,0.32670663]
[1743304517234,1.238,613.35,612.17,0.32670663]
[1743304517431,0.32608341,613.34,612.17,0.32670663]
[1743304518137,0.28402599,613.33,612.17,0.32670663]
[1743304518435,0.32609404,613.32,612.17,0.32670663]
[1743304518938,1.69809404,613.32,612.17,0.32670663]
[1743304521541,2.84713142,613.32,612.17,0.32670663]
[1743304522244,1.69809404,613.32,612.17,0.32670663]
[1743304523145,2.84713142,613.32,612.17,0.32670663]
[1743304523949,1.69809404,613.32,612.17,0.32670663]
[1743304524346,0.2840341,613.31,612.17,0.32670663]
[1743304524943,0.32610467,613.3,612.17,0.32670663]
[1743304525744,1.32610467,613.3,612.17,0.32670663]
[1743304525945,1.32610467,613.3,612.16,0.2840341]
[1743304526946,2.73925874,613.3,611.14,2.52489028]
[1743304527249,0.2841663,613.29,612.16,0.2841663]
[1743304527447,0.32611531,613.28,612.16,0.2841663]
[1743304527647,0.32611531,613.28,611.24,0.32720371]
[1743304527946,0.32611531,613.28,611.99,1.0]
[1743304528941,0.32611531,613.28,612.0,0.28406888]
[1743304529945,0.32611531,613.28,611.64,2.52489028]
[1743304530145,0.32611531,613.28,611.99,1.0]
[1743304530443,0.28411642,613.27,612.0,0.28411642]
[1743304530644,0.32612594,613.26,612.0,0.28411642]
[1743304531448,0.32612594,613.26,612.02,1.0]
[1743304531645,1.14903738,613.25,612.02,1.0]
[1743304531842,0.32613658,613.24,612.02,1.0]
[1743304532045,1.47517396,613.24,612.02,1.0]
[1743304532545,0.32613658,613.24,612.02,1.0]
[1743304533757,1.47517396,613.24,612.02,1.0]
[1743304534555,0.32613658,613.24,612.02,1.0]
[1743304539361,1.078,613.23,612.02,1.0]
[1743304539560,0.32614722,613.22,612.02,1.0]
[1743304542266,0.28409091,613.21,612.02,1.0]
[1743304542567,0.32615786,613.2,612.02,1.0]
[1743304543664,1.32615786,613.2,612.01,0.28409091]
[1743304545061,1.32615786,613.2,611.66,0.32697904]
[1743304545263,0.2841431,613.19,612.01,0.2841431]
[1743304545466,0.32616849,613.18,612.01,0.2841431]
[1743304545661,0.32616849,613.18,611.66,0.32697904]
[1743304545865,0.32616849,613.18,611.86,1.0]
[1743304546267,1.098,613.17,611.86,1.0]
[1743304546567,1.0,613.02,611.66,0.32697904]
[1743304546764,1.0,613.02,611.87,0.28416514]
[1743304546966,1.0,613.02,611.66,0.32697904]
[1743304547162,2.56480427,613.01,611.66,0.32697904]
[1743304547463,3.46820621,613.01,611.87,0.284222]
[1743304547664,0.32626959,612.99,611.66,0.32697904]
[1743304548065,1.14903738,612.98,611.87,0.28422781]
[1743304548263,0.32628556,612.96,611.87,0.28422781]
[1743304548567,0.32628556,612.96,611.66,0.32697904]
[1743304548768,1.14903738,612.95,611.66,0.32697904]
[1743304549264,1.14903738,612.94,611.66,0.32697904]
[1743304549570,0.32630153,612.93,611.67,0.28431373]
[1743304549969,1.14903738,612.92,611.67,0.28431373]
[1743304550563,1.14903738,612.91,611.67,0.28431373]
[1743304550964,2.05243932,612.91,611.66,0.32697904]
[1743304551270,1.43327679,612.9,611.67,0.28423941]
[1743304551473,2.33667873,612.9,611.67,0.28423941]
[1743304551667,6.01709546,612.9,611.67,0.28423941]
[1743304551868,2.05044889,612.89,611.67,0.28423941]
[1743304552067,5.73285605,612.89,611.67,0.28423941]
[1743304552265,0.90141151,612.88,611.67,0.28423941]
[1743304552470,4.53354504,612.88,611.67,0.28423941]
[1743304552668,4.58381867,612.87,611.67,0.28423941]
[1743304552868,3.68240716,612.87,611.67,0.28423941]
[1743304553069,0.3263388,612.86,611.67,0.28423941]
[1743304553868,1.14903738,612.85,611.67,0.28423941]
[1743304554070,0.32634945,612.84,611.66,0.32697904]
[1743304554270,0.61059583,612.84,611.67,0.28424638]
[1743304554672,1.14903738,612.83,611.67,0.28424638]
[1743304554867,0.3263601,612.82,611.67,0.28424638]
[1743304555467,1.14903738,612.81,611.67,0.28424638]
[1743304555773,0.32637075,612.8,611.67,0.28424638]
[1743304555975,1.47540813,612.8,611.67,0.28424638]
[1743304556475,1.14903738,612.79,611.67,0.28424638]
[1743304556674,0.3263814,612.78,611.67,0.28424638]
[1743304557270,1.14903738,612.77,611.67,0.28424638]
[1743304557470,0.32639206,612.76,611.67,0.28424638]
[1743304558075,1.14903738,612.75,611.67,0.28424638]
[1743304558275,0.32640271,612.74,611.67,0.28424638]
[1743304558674,2.60303738,612.73,611.67,0.28424638]
[1743304558872,0.32641336,612.72,611.67,0.28424638]
[1743304559274,1.14903738,612.71,611.67,0.28424638]
[1743304559971,2.56480427,612.71,611.66,0.32697904]
[1743304560176,1.14903738,612.7,611.66,0.32697904]
[1743304560376,1.43332556,612.7,611.67,0.28428818]
[1743304560572,0.32642935,612.69,611.67,0.28428818]
[1743304560871,1.47546673,612.69,611.67,0.28428818]
[1743304561473,1.14903738,612.68,611.67,0.28428818]
[1743304561873,1.14903738,612.67,611.67,0.28428818]
[1743304562777,1.14903738,612.66,611.67,0.28428818]
[1743304562975,1.14903738,612.66,611.66,0.32697904]
[1743304563378,1.14903738,612.66,611.67,0.28427308]
[1743304563572,1.14903738,612.65,611.67,0.28427308]
[1743304564373,1.14903738,612.64,611.67,0.28427308]
[1743304565078,1.14903738,612.63,611.67,0.28427308]
[1743304565284,2.55003738,612.63,611.67,0.28427308]
[1743304565974,1.14903738,612.62,611.66,0.32697904]
[1743304566372,1.14903738,612.62,611.67,0.28427657]
[1743304566975,1.14903738,612.61,611.67,0.28427657]
[1743304567379,1.14903738,612.62,611.67,0.28427657]
[1743304568778,1.401,612.63,611.67,0.28427657]
[1743304572083,1.401,612.63,611.66,0.32697904]
[1743304572484,1.401,612.63,611.67,0.28429514]
[1743304572986,1.401,612.63,611.67,1.28429514]
[1743304574982,1.401,612.63,611.67,1.0]
[1743304575381,1.401,612.63,611.67,1.28426844]
[1743304578089,1.401,612.63,611.67,1.0]
[1743304578488,1.401,612.63,611.67,1.28425451]
[1743304579590,1.401,612.63,611.67,1.0]
[1743304583486,0.32642935,612.69,611.67,1.0]
[1743304584088,0.32642935,612.69,611.67,1.28426147]
[1743304585691,0.32642935,612.69,611.67,0.28426147]
[1743304587194,1.75842935,612.69,611.67,0.28426147]
[1743304590096,1.75842935,612.69,611.66,0.32697904]
[1743304590403,3.18342935,612.69,611.67,0.28426728]
[1743304592805,3.18342935,612.69,611.7,1.0]
[1743304604716,1.15110232,612.68,611.7,1.0]
[1743304605116,1.15110232,612.68,611.66,0.32697904]
[1743304605117,2.57293988,612.68,611.66,0.32697904]
[1743304605319,2.57293988,612.68,611.69,0.28428702]
[1743304605519,0.32644,612.67,611.69,0.28428702]
[1743304605916,1.15110232,612.66,611.69,0.28428702]
[1743304606521,1.47754765,612.66,611.69,0.28428702]
[1743304606722,1.15110232,612.65,611.69,0.28428702]
[1743304607523,1.15110232,612.64,611.69,0.28428702]
[1743304608023,1.15110232,612.63,611.66,0.32697904]
[1743304608417,1.15110232,612.63,611.69,0.28429631]
[1743304608618,1.15110232,612.62,611.69,0.28429631]
[1743304609023,1.15110232,612.61,611.69,0.28429631]
[1743304609618,1.15110232,612.6,611.69,0.28429631]
[1743304610223,1.15110232,612.59,611.69,0.28429631]
[1743304610518,0.32644533,612.66,611.69,0.28429631]
[1743304610519,1.15110232,612.65,611.69,0.28429631]
[1743304610920,1.15110232,612.64,611.69,0.28429631]
[1743304611126,1.15110232,612.64,611.66,0.32697904]
[1743304611326,1.15110232,612.63,611.69,0.28429514]
[1743304612023,1.47756364,612.63,611.69,0.28429514]
[1743304612227,0.32646665,612.62,611.69,0.28429514]
[1743304612528,1.47756897,612.62,611.69,0.28429514]
[1743304613025,1.15110232,612.61,611.69,0.28429514]
[1743304613528,1.616,612.6,611.69,0.28429514]
[1743304613726,2.76710232,612.6,611.69,0.28429514]
[1743304613920,2.76710232,612.6,611.3,2.52489028]
[1743304614123,1.616,612.6,611.48,1.0]
[1743304615327,1.616,612.6,611.49,0.28433347]
[1743304616123,1.782,612.59,611.49,0.28433347]
[1743304617127,2.93310232,612.59,611.04,2.52489028]
[1743304617330,2.93310232,612.59,611.48,1.0]
[1743304617533,2.93310232,612.59,611.49,0.28438575]
[1743304617731,2.93310232,612.59,611.06,0.3273001]
[1743304617930,2.93310232,612.59,611.48,1.0]
[1743304618530,2.93310232,612.59,611.49,0.28433463]
[1743304619124,3.25958495,612.59,611.49,0.28433463]
[1743304619431,0.32648796,612.58,611.49,0.28433463]
[1743304619633,1.74815945,612.58,611.49,0.28433463]
[1743304620033,1.74815945,612.58,611.06,0.3273001]
[1743304620227,1.15110232,612.57,611.43,1.0]
[1743304620532,1.15110232,612.57,611.49,0.28439389]
[1743304620733,1.15110232,612.57,611.06,0.3273001]
[1743304620933,1.15110232,612.57,611.43,1.0]
[1743304621127,1.15110232,612.56,611.43,1.0]
[1743304621331,1.15110232,612.56,611.44,0.28435206]
[1743304621734,1.15110232,612.55,611.44,0.28435206]
[1743304622235,1.15110232,612.54,611.44,0.28435206]
[1743304622931,1.15110232,612.53,611.44,0.28435206]
[1743304623136,1.15110232,612.53,611.06,0.3273001]
[1743304623336,1.15110232,612.53,611.44,0.28439853]
[1743304623536,1.15110232,612.52,611.44,0.28439853]
[1743304623836,1.15110232,612.52,611.46,1.0]
[1743304624029,1.15110232,612.51,611.46,1.0]
[1743304624829,1.15110232,612.5,611.46,1.0]
[1743304625630,1.15110232,612.57,611.46,1.0]
[1743304626735,1.15110232,612.56,611.46,1.0]
[1743304627237,1.15110232,612.55,611.46,1.0]
[1743304628135,1.15110232,612.57,611.46,1.0]
[1743304628535,0.32648796,612.58,611.46,1.0]
[1743304632031,1.73448796,612.58,611.46,1.0]
[1743304634841,1.73448796,612.58,611.64,1.0]
[1743304636434,1.408,612.58,611.64,1.0]
[1743304637637,3.116,612.58,611.64,1.0]
[1743304668383,3.116,612.58,611.64,3.52489028]
[1743304668581,3.116,612.58,611.64,2.52489028]
[1743304669781,3.116,612.58,611.71,2.52489028]
[1743304671880,3.116,612.58,611.72,2.52489028]
[1743304673684,3.116,612.58,611.74,2.52489028]
[1743304675283,3.116,612.58,611.69,0.2842754]
[1743304677186,3.116,612.58,611.68,2.52489028]
[1743304677583,3.116,612.58,611.73,2.52489028]
[1743304679488,3.116,612.58,611.71,2.52489028]
[1743304679686,3.44248796,612.58,611.71,2.52489028]
[1743304679985,1.47557118,612.57,611.71,2.52489028]
[1743304680687,0.32649329,612.57,611.71,2.52489028]
[1743304681190,0.32649329,612.57,611.7,0.28431256]
[1743304682991,0.32649329,612.57,611.14,2.52489028]
[1743304683390,0.32649329,612.57,611.7,0.28435206]
[1743304683584,0.32649329,612.57,611.15,0.3272519]
[1743304683790,0.32649329,612.57,611.54,1.0]
[1743304684193,2.85349329,612.57,611.54,1.0]
[1743304685092,2.85349329,612.57,611.55,0.28430676]
[1743304686092,2.85349329,612.57,611.54,1.0]
[1743304686489,2.85349329,612.57,611.55,0.28430676]
[1743304689086,2.85349329,612.57,611.54,1.0]
[1743304689491,2.85349329,612.57,611.55,0.28430211]
[1743304692087,2.85349329,612.57,611.54,1.0]
[1743304692485,2.85349329,612.57,611.55,0.28430211]
[1743304695194,2.85349329,612.57,611.57,2.52489028]
[1743304697094,2.85349329,612.57,611.59,2.52489028]
[1743304699898,2.85349329,612.57,611.74,1.0]
[1743304706502,2.85349329,612.57,611.63,0.28425102]
[1743304707102,2.85349329,612.57,611.37,2.52489028]
[1743304707395,2.85349329,612.57,611.59,1.0]
[1743304708601,2.85349329,612.57,611.6,0.28431256]
[1743304710198,2.85349329,612.57,605.03,7.9180455]
[1743304710398,2.85349329,612.57,611.59,1.0]
[1743304710704,2.85349329,612.57,611.6,0.28436367]
[1743304713097,2.85349329,612.57,606.46,0.01648913]
[1743304713300,2.85349329,612.57,611.6,0.28436367]
[1743304713605,2.85349329,612.57,611.01,2.47085025]
[1743304713802,2.85349329,612.57,611.59,1.0]
[1743304714402,2.85349329,612.57,611.6,0.28431256]
[1743304716203,2.85349329,612.57,610.97,2.47085025]
[1743304716403,2.85349329,612.57,611.6,0.28436367]
[1743304716799,2.85349329,612.57,610.97,2.47085025]
[1743304716998,2.85349329,612.57,611.59,1.0]
[1743304717405,2.85349329,612.57,611.6,0.28431256]
[1743304719104,2.85349329,612.57,611.2,2.47085025]
[1743304719405,2.85349329,612.57,611.59,1.0]
[1743304719605,2.85349329,612.57,611.6,0.28435787]
[1743304722099,2.85349329,612.57,611.24,2.47085025]
[1743304722308,2.85349329,612.57,611.59,1.0]
[1743304724913,2.85349329,612.57,611.72,1.0]
[1743304745335,2.527,612.57,611.85,1.0]
[1743304746330,2.51659337,612.57,611.85,1.0]
[1743304746527,1.33,612.57,611.85,1.0]
[1743304748725,1.33,612.57,611.98,1.0]
[1743304754029,1.33,612.57,612.12,1.0]
[1743304765346,1.33,612.57,612.26,1.0]
[1743304786768,1.33,612.57,612.25,0.28408859]
[1743304790366,1.33,612.57,611.78,2.47085025]
[1743304790571,1.33,612.57,612.11,0.28422432]
[1743304790967,1.33,612.57,611.4,2.47085025]
[1743304791171,1.33,612.57,612.11,0.28426844]
[1743304791468,1.33,612.57,611.42,0.32710738]
[1743304791666,1.33,612.57,611.87,1.0]
[1743304792066,3.29,612.57,611.87,1.0]
[1743304792566,3.29,612.57,611.88,0.28421272]
[1743304794270,3.29,612.57,611.42,0.32710738]
[1743304794468,3.29,612.57,611.88,0.28428121]
[1743304794868,3.29,612.57,611.42,0.32710738]
[1743304795071,3.29,612.57,611.81,1.0]
[1743304795470,3.29,612.57,611.82,0.28423593]
[1743304797173,3.29,612.57,611.42,0.32710738]
[1743304797574,3.29,612.57,611.81,1.0]
[1743304798574,3.29,612.57,611.82,0.28423593]
[1743304800275,3.29,612.57,611.42,0.32710738]
[1743304800471,3.29,612.57,611.82,0.28428121]
[1743304800876,3.29,612.57,611.42,0.32710738]
[1743304801078,3.29,612.57,611.81,1.0]
[1743304801479,3.29,612.57,611.82,0.28423593]
[1743304803178,3.29,612.57,611.42,0.32710738]
[1743304803373,3.29,612.57,611.73,1.0]
[1743304812899,3.29,612.57,611.86,1.0]
[1743304821104,3.29,612.57,612.0,1.0]
[1743304828701,3.29,612.57,611.89,0.2841721]
[1743304830207,3.29,612.57,611.42,0.32710738]
[1743304830407,3.29,612.57,611.89,0.28427889]
[1743304830809,3.29,612.57,611.42,0.32710738]
[1743304831009,3.29,612.57,611.83,1.0]
[1743304831609,3.29,612.57,611.84,0.28423129]
[1743304833307,3.29,612.57,611.42,0.32710738]
[1743304833511,3.29,612.57,611.84,0.28427889]
[1743304833910,3.29,612.57,611.42,0.32710738]
[1743304834107,3.29,612.57,611.81,1.0]
[1743304846622,3.29,612.57,612.0,1.0]
[1743304897962,3.29,612.57,612.01,2.47085025]
[1743304900267,3.29,612.57,612.0,0.2841547]
[1743304900268,3.29,612.57,612.1,2.47085025]
[1743304902263,3.29,612.57,611.24,2.47085025]
[1743304902467,3.29,612.57,611.97,1.0]
[1743304903463,3.29,612.57,611.98,0.28415934]
[1743304905268,3.29,612.57,611.24,2.47085025]
[1743304905563,3.29,612.57,611.98,0.28422316]
[1743304905762,3.29,612.57,611.24,2.47085025]
[1743304905965,3.29,612.57,611.97,1.0]
[1743304906566,3.29,612.57,611.98,0.28417674]
[1743304908268,3.29,612.57,611.2,2.47085025]
[1743304908470,3.29,612.57,611.98,0.28427192]
[1743304908871,3.29,612.57,611.45,2.47085025]
[1743304909071,3.29,612.57,611.79,1.0]
[1743304909464,3.29,612.57,611.8,0.28422897]
[1743304911272,3.29,612.57,611.46,0.32708599]
[1743304911472,3.29,612.57,611.8,0.28428585]
[1743304911870,3.29,612.57,611.46,0.32708599]
[1743304912170,3.29,612.57,611.73,1.0]
[1743304913168,3.29,612.57,611.74,0.28425451]
[1743304914272,3.29,612.57,611.46,0.32708599]
[1743304914467,3.29,612.57,611.74,0.28428585]
[1743304914973,3.29,612.57,611.46,0.32708599]
[1743304915272,3.29,612.57,611.73,1.0]
[1743304916166,3.29,612.57,611.74,0.28425451]
[1743304917271,3.29,612.57,611.73,1.0]
[1743304917470,3.29,612.57,611.74,0.28423361]
[1743304919770,3.29,612.57,611.86,1.0]
[1743304950803,3.29,612.57,611.85,0.28425334]
[1743304953205,3.29,612.57,611.46,0.32708599]
[1743304953400,3.29,612.57,611.69,1.0]
[1743304953606,3.29,612.57,611.85,0.28430908]
[1743304954000,3.29,612.57,611.46,0.32708599]
[1743304954202,3.29,612.57,611.69,1.0]
[1743304954704,3.29,612.57,611.7,0.28428237]
[1743304956204,3.29,612.57,611.46,0.32708599]
[1743304956404,3.29,612.57,611.69,1.0]
[1743304956614,3.29,612.57,611.7,0.28430908]
[1743304959305,3.29,612.57,611.46,0.32708599]
[1743304959500,3.29,612.57,611.69,1.0]
[1743304976126,1.15085862,612.56,611.69,1.0]
[1743304976323,1.47735724,612.56,611.69,1.0]
[1743304976922,0.32649862,612.56,611.69,1.0]
[1743304979325,1.116,612.55,611.69,1.0]
[1743304980527,1.532,612.54,611.69,1.0]
[1743305008949,1.532,612.54,611.69,3.47085025]
[1743305009451,0.32649862,612.56,611.69,3.47085025]
[1743305009452,0.32649862,612.56,611.69,2.47085025]
[1743305009845,0.32649862,612.56,611.68,0.28426495]
[1743305011549,1.467,612.55,611.68,0.28426495]
[1743305011749,0.32650928,612.54,611.68,0.28426495]
[1743305011949,1.60750928,612.54,611.68,0.28426495]
[1743305012151,5.30856409,612.54,611.68,0.28426495]